Workbook

Sheet Diba
A3: liquidació del pressupost | K3: exercici corrent
A4: resum per capítols | K4: 31 de desembre de 2021
A7: ingressos
A9: capítol pressupostari | D9: Pressupost inicial | E9: Modificacions | F9: Pressupost actual | G9: Drets reconeguts nets | H9: Recaptació | I9: Pendent de cobrament | K9: % (D)/(C)
D10: (A) | E10: (B) | F10: (C) = (A)+(B) | G10: (D) | H10: (E) | I10: (F) = (D)+(E) | K10: (G)
A11: 1 | B11: Impostos directes | D11: 140297000 | E11: 0 | F11: 140297000 | G11: 151909845.4 | H11: 135522208.3 | I11: 16387637.07 | K11: =IF(F11=0,0,G11/F11) -> 1.082773298
A12: 2 | B12: Impostos indirectes | D12: 90354500 | E12: 0 | F12: 90354500 | G12: 82899204.14 | H12: 82899204.14 | I12: 0 | K12: 0.9174883834
A13: 3 | B13: Taxes i altres ingressos | D13: 4190000 | E13: 0 | F13: 4190000 | G13: 7276998.11 | H13: 5174133.33 | I13: 2102864.78 | K13: 1.736753726
A14: 4 | B14: Transferències corrents | D14: 536252750 | E14: 19534985.46 | F14: 555787735.5 | G14: 552632252.8 | H14: 546436214.4 | I14: 6196038.37 | K14: 0.994322504
A15: 5 | B15: Ingressos patrimonials | D15: 2589750 | E15: 0 | F15: 2589750 | G15: 2559581.51 | H15: 2401968.9 | I15: 157612.61 | K15: 0.9883508099
B16: Ingressos corrents (I1) | D16: =SUM(D11:D15) -> 773684000 | E16: 19534985.46 | F16: 793218985.5 | G16: =SUM(G11:G15) -> 797277881.9 | H16: =SUM(H11:H15) -> 772433729.1 | I16: 24844152.83 | K16: 1.005116994
A17: 6 | B17: Alienació de béns | D17: 0 | E17: 0 | F17: 0 | G17: 1003574.36 | H17: 916053.73 | I17: 87520.63 | K17: 0
A18: 7 | B18: Transferències capital | D18: 1100000 | E18: 2000 | F18: 1102000 | G18: 3290490.95 | H18: 1430657.89 | I18: 1859833.06 | K18: 2.985926452
B19: Ingressos de capital (I2) | D19: =D17+D18 -> 1100000 | E19: 2000 | F19: 1102000 | G19: =G17+G18 -> 4294065.31 | H19: =H17+H18 -> 2346711.62 | I19: 1947353.69 | K19: 3.896610989
A20: 8 | B20: Actius financers | D20: 190450000 | E20: 286989508.3 | F20: 477439508.3 | G20: 192021563.7 | H20: 191193569.7 | I20: 827993.96 | K20: 0.4021903515
A21: 9 | B21: Passius financers | D21: 0 | E21: 0 | F21: 0 | G21: 0 | H21: 0 | I21: 0 | K21: 0
B22: Ingressos financers (I3) | D22: =D20+D21 -> 190450000 | E22: 286989508.3 | F22: 477439508.3 | G22: =G20+G21 -> 192021563.7 | H22: =H20+H21 -> 191193569.7 | I22: 827993.96 | K22: 0.4021903515
B25: Total d'ingressos | D25: =D16+D19+D22 -> 965234000 | E25: 306526493.7 | F25: 1271760494 | G25: 993593510.9 | H25: 965974010.4 | I25: 27619500.48 | K25: =IF(F25=0,0,G25/F25) -> 0.7812740809
A29: despeses
A31: capítol pressupostari | D31: Pressupost inicial | E31: Modificacions | F31: Pressupost actual | G31: Obligacions reconegudes | H31: Pagaments | I31: Pendent de pagament | K31: % (D)/(C)
D32: (A) | E32: (B) | F32: (C) = (A)+(B) | G32: (D) | H32: (E) | I32: (F) = (D)+(E) | K32: (G)
A33: 1 | B33: Despeses de personal | D33: 242345000 | E33: 4442614.53 | F33: 246787614.5 | G33: 212681461.4 | H33: 212680553.9 | I33: 907.5 | K33: =IF(F33=0,0,G33/F33) -> 0.8617995752
A34: 2 | B34: Despeses béns corrents i serveis | D34: 110078985 | E34: 19266493.47 | F34: 129345478.5 | G34: 89781835.87 | H34: 89591191.59 | I34: 190644.28 | K34: 0.6941242704
A35: 3 | B35: Despeses financeres | D35: 1769000 | E35: -1465000 | F35: 304000 | G35: 33998.1 | H35: 33998.1 | I35: 0 | K35: 0.1118358553
A36: 4 | B36: Transferències corrents | D36: 239310910 | E36: 118362676.8 | F36: 357673586.8 | G36: 282365528.2 | H36: 281654378.3 | I36: 711149.84 | K36: 0.7894503218
A37: 5 | B37: Fons de contingència i altres impr. | D37: 5000000 | E37: 0 | F37: 5000000 | G37: 0 | H37: 0 | I37: 0 | K37: =IF(F37=0,0,G37/F37) -> 0
B38: Despeses corrents (D1) | D38: =SUM(D33:D37) -> 598503895 | E38: 140606784.8 | F38: 739110679.8 | G38: 584862823.5 | H38: 583960121.9 | I38: 902701.62 | K38: 0.791306146
A39: 6 | B39: Inversions reals | D39: 51007000 | E39: 32863445.47 | F39: 83870445.47 | G39: 42147194.03 | H39: 42059957.99 | I39: 87236.04 | K39: 0.5025273658
A40: 7 | B40: Transferències capital | D40: 122506115 | E40: 118251596.7 | F40: 240757711.7 | G40: 139447091.2 | H40: 139209087.7 | I40: 238003.49 | K40: 0.5792009328
B41: Despeses de capital (D2) | D41: =D39+D40 -> 173513115 | E41: 151115042.2 | F41: 324628157.2 | G41: 181594285.2 | H41: 181269045.7 | I41: 325239.53 | K41: 0.5593916646
A42: 8 | B42: Actius financers | D42: 193216990 | E42: 14804666.76 | F42: 208021656.8 | G42: 200263832.3 | H42: 200255309.7 | I42: 8522.54 | K42: 0.9627066498
A43: 9 | B43: Passius financers | D43: 0 | E43: 0 | F43: 0 | G43: 0 | H43: 0 | I43: 0 | K43: 0
B44: Despeses financeres (D3) | D44: =D42+D43 -> 193216990 | E44: 14804666.76 | F44: 208021656.8 | G44: 200263832.3 | H44: 200255309.7 | I44: 8522.54 | K44: 0.9627066498
B47: ="Total de "&A29 -> Total de despeses | D47: =D38+D41+D44 -> 965234000 | E47: 306526493.7 | F47: 1271760494 | G47: 966720941 | H47: 965484477.3 | I47: 1236463.69 | K47: =IF(F47=0,0,G47/F47) -> 0.7601438681
A51: diferències
A54: en operacions corrents (I1)-(D1) | D54: =D16-D38 -> 175180105 | E54: -121071799.3 | F54: 54108305.69 | G54: 212415058.4 | H54: 188473607.2 | I54: 23941451.21
A55: en operacions de capital (I2)-(D2) | D55: =D19-D41 -> -172413115 | E55: -151113042.2 | F55: -323526157.2 | G55: -177300219.9 | H55: -178922334.1 | I55: 1622114.16
A56: en operacions financeres (I3)-(D3) | D56: =D22-D44 -> -2766990 | E56: 272184841.5 | F56: 269417851.5 | G56: -8242268.61 | H56: -9061740.03 | I56: 819471.42
B59: ="Total "&A51 -> Total diferències | D59: =D25-D47 -> 0 | E59: 0 | F59: 0 | G59: 26872569.9 | H59: 489533.11 | I59: 26383036.79
K68: extret el 14/01/2022

Sheet DibaAltres
A3: liquidació del pressupost | K3: exercici corrent
A4: resum per capítols | K4: 31 de desembre de 2021
A7: despeses
A9: capítol pressupostari | D9: Crèdits definitius | E9: Despeses autoritzades | F9: Despeses compromeses | G9: Obligacions reconegudes | H9: Crèdit disponible | I9: Romanents de crèdit | K9: % (C)/(A)
D10: (A) | E10: (B) | F10: (C) | G10: (D) | H10: (E) | I10: (F) = (A)-(D) | K10: (G)
A11: 1 | B11: Despeses de personal | D11: 246787614.5 | E11: 214959179.1 | F11: 214859179.1 | G11: 212681461.4 | H11: 31828435.41 | I11: 34106153.17 | K11: =IF(D11=0,0,F11/D11) -> 0.8706238339
A12: 2 | B12: Despeses béns corrents i serveis | D12: 129345478.5 | E12: 109170093.4 | F12: 108251378.5 | G12: 89781835.87 | H12: 18803627.77 | I12: 39563642.6 | K12: =IF(D12=0,0,F12/D12) -> 0.8369166032
A13: 3 | B13: Despeses financeres | D13: 304000 | E13: 218197.88 | F13: 218197.88 | G13: 33998.1 | H13: 85802.12 | I13: 270001.9 | K13: 0.7177561842
A14: 4 | B14: Transferències corrents | D14: 357673586.8 | E14: 346619471.9 | F14: 344841526.5 | G14: 282365528.2 | H14: 10959116.93 | I14: 75308058.6 | K14: 0.9641235453
A15: 5 | B15: Fons de contingència i altres impr. | D15: 5000000 | E15: 0 | F15: 0 | G15: 0 | H15: 5000000 | I15: 5000000 | K15: =IF(D15=0,0,F15/D15) -> 0
B16: Despeses corrents (D1) | D16: =SUM(D11:D15) -> 739110679.8 | E16: 670966942.3 | F16: 668170282 | G16: 584862823.5 | H16: 66676982.23 | I16: 154247856.3 | K16: 0.9040192495
A17: 6 | B17: Inversions reals | D17: 83870445.47 | E17: 62734240.81 | F17: 60560059.29 | G17: 42147194.03 | H17: 20377831.24 | I17: 41723251.44 | K17: 0.7220667418
A18: 7 | B18: Transferències capital | D18: 240757711.7 | E18: 226375472.3 | F18: 219767443.5 | G18: 139447091.2 | H18: 14382239.4 | I18: 101310620.5 | K18: 0.9128158011
B19: Despeses de capital (D2) | D19: =D17+D18 -> 324628157.2 | E19: 289109713.1 | F19: 280327502.8 | G19: 181594285.2 | H19: 34760070.64 | I19: 143033872 | K19: 0.8635341592
A20: 8 | B20: Actius financers | D20: 208021656.8 | E20: 207219000.4 | F20: 207219000.4 | G20: 200263832.3 | H20: 802656.39 | I20: 7757824.5 | K20: 0.9961414768
A21: 9 | B21: Passius financers | D21: 0 | E21: 0 | F21: 0 | G21: 0 | H21: 0 | I21: 0 | K21: 0
B22: Despeses financeres (D3) | D22: =D20+D21 -> 208021656.8 | E22: 207219000.4 | F22: 207219000.4 | G22: 200263832.3 | H22: 802656.39 | I22: 7757824.5 | K22: 0.9961414768
B25: ="Total de "&A7 -> Total de despeses | D25: =D16+D19+D22 -> 1271760494 | E25: 1167295656 | F25: 1155716785 | G25: 966720941 | H25: 102239709.3 | I25: 305039552.7 | K25: =IF(D25=0,0,F25/D25) -> 0.9087534885
K36: extret el 14/01/2022
K70: =extraccio -> 

Sheet GrIngressos
L1: Intervenció General
L2: 31 de desembre de 2021
L84: extret el 14/01/2022

Sheet GrDespeses
L1: Intervenció General
L2: 31 de desembre de 2021
L84: extret el 14/01/2022

Sheet CGrafics
G1: 31 de desembre de 2021
A3: calculs per gràfics del pressupost actual
A6: ingressos
B8: Previsions inicials | C8: Previsions definitives | D8: Drets reconeguts nets | E8: Cobraments realitzats | F8: Pendent de cobrament
B9: 965.234 | C9: 1271.760494 | D9: 993.5935109 | E9: 965.9740104 | F9: 27.61950048
A12: drets reconeguts nets
B14: 1 | C14: 2 | D14: 3 | E14: 4 | F14: 5 | G14: 6 | H14: 7 | I14: 8 | J14: 9
A15: drets reconeguts nets | B15: 151909845.4 | C15: 82899204.14 | D15: 7276998.11 | E15: 552632252.8 | F15: 2559581.51 | G15: 1003574.36 | H15: 3290490.95 | I15: 192021563.7 | J15: 0
A16: previsions definitives | B16: 140297000 | C16: 90354500 | D16: 4190000 | E16: 555787735.5 | F16: 2589750 | G16: 0 | H16: 1102000 | I16: 477439508.3 | J16: 0
A17: drets milions | B17: 151.9098454 | C17: 82.89920414 | D17: 7.27699811 | E17: 552.6322528 | F17: 2.55958151 | G17: 1.00357436 | H17: 3.29049095 | I17: 192.0215637 | J17: 0
A18: definitives milions | B18: 140.297 | C18: 90.3545 | D18: 4.19 | E18: 555.7877355 | F18: 2.58975 | G18: 0 | H18: 1.102 | I18: 477.4395083 | J18: 0
A21: ingressos nets
A23: recaptació neta | B23: =E9 -> 965.9740104
A24: pendent de cobrament | B24: =F9 -> 27.61950048
A27: despeses
B29: Crèdits inicials | C29: Crèdits definitius | D29: Disposicions | E29: Obligacions reconegudes | F29: Pagaments realitzats | G29: Pendent de pagament
B30: 965.234 | C30: 1271.760494 | D30: 1155.716785 | E30: 966.720941 | F30: 965.4844773 | G30: 1.23646369
A33: obligacions reconegudes
B35: 1 | C35: 2 | D35: 3 | E35: 4 | F35: 5 | G35: 6 | H35: 7 | I35: 8 | J35: 9
A36: despeses compromeses | B36: 214859179.1 | C36: 108251378.5 | D36: 218197.88 | E36: 344841526.5 | F36: 0 | G36: 60560059.29 | H36: 219767443.5 | I36: 207219000.4 | J36: 0
A37: crèdits definitius | B37: 246787614.5 | C37: 129345478.5 | D37: 304000 | E37: 357673586.8 | F37: 5000000 | G37: 83870445.47 | H37: 240757711.7 | I37: 208021656.8 | J37: 0
A38: despeses compr. milions | B38: 214.8591791 | C38: 108.2513785 | D38: 0.21819788 | E38: 344.8415265 | F38: 0 | G38: 60.56005929 | H38: 219.7674435 | I38: 207.2190004 | J38: 0
A39: crèdits definitius milions | B39: 246.7876145 | C39: 129.3454785 | D39: 0.304 | E39: 357.6735868 | F39: 5 | G39: 83.87044547 | H39: 240.7577117 | I39: 208.0216568 | J39: 0
A42: pagaments
A44: pagaments | B44: =F30 -> 965.4844773
A45: pendent de pagament | B45: =G30 -> 1.23646369
